bitfinex-derivatives/quotes_SOLF0:USTF0_20250113
["timestamp","ask_amount","ask_price","bid_price","bid_amount"]
[1736792025535,1.6561,176.46,176.34,2.8366]
[1736792025536,13.898875,176.41,176.34,2.8366]
[1736792025728,2.836,176.38,176.34,2.8366]
[1736792025928,13.898875,176.41,176.34,2.8366]
[1736792026122,13.898875,176.41,176.33,2.8368]
[1736792026635,2.8363,176.37,176.31,9.541]
[1736792027232,2.836,176.39,176.31,9.541]
[1736792027434,13.898875,176.41,176.31,9.541]
[1736792028837,13.898875,176.41,176.31,3.301]
[1736792029038,13.898875,176.38,176.3,4.53]
[1736792029443,2.8368,176.34,176.3,7.3673]
[1736792029638,13.898875,176.35,176.3,4.53]
[1736792031937,2.8369,176.33,176.3,7.3673]
[1736792032132,1.7172,176.37,176.3,4.53]
[1736792032448,1.7172,176.37,176.33,2.8367]
[1736792032449,2.8363,176.37,176.33,2.8367]
[1736792032746,13.898875,176.38,176.3,4.53]
[1736792033345,23.96559908,176.39,176.3,4.53]
[1736792034749,2.8371,176.32,176.3,4.53]
[1736792037147,23.96559908,176.39,176.3,4.53]
[1736792037348,1.6709,176.44,176.3,26.77659908]
[1736792037550,22.24659908,176.47,176.33,22.24659908]
[1736792037747,1.6631,176.48,176.34,11.0055]
[1736792038351,2.8356,176.41,176.34,11.0055]
[1736792038553,22.24659908,176.47,176.34,11.0055]
[1736792038752,2.8352,176.44,176.34,13.8421]
[1736792038946,22.24659908,176.44,176.34,13.8421]
[1736792039146,22.24659908,176.44,176.34,10.6946]
[1736792039347,22.24659908,176.44,176.34,6.22]
[1736792039549,22.24659908,176.41,176.34,6.22]
[1736792039854,22.24659908,176.44,176.34,6.22]
[1736792040156,28.46659908,176.47,176.34,6.22]
[1736792040349,22.24659908,176.43,176.34,6.22]
[1736792040958,2.8361,176.38,176.34,9.0566]
[1736792041456,2.8359,176.39,176.35,2.8364]
[1736792041759,22.24659908,176.43,176.34,6.22]
[1736792042153,2.8357,176.41,176.34,9.0566]
[1736792042357,22.24659908,176.43,176.3,6.26]
[1736792042752,22.24659908,176.4,176.3,6.26]
[1736792043555,1.5826,176.39,176.27,11.0455]
[1736792045662,2.8365,176.35,176.27,11.0455]
[1736792045966,1.5826,176.39,176.27,11.0455]
[1736792046462,2.8368,176.34,176.3,2.8372]
[1736792047667,2.8364,176.36,176.27,11.0455]
[1736792047867,22.24659908,176.46,176.31,22.24659908]
[1736792048567,4.9938,176.48,176.34,22.24659908]
[1736792048762,156.0164457,176.51,176.37,22.24659908]
[1736792048959,156.0164457,176.51,176.4,22.24659908]
[1736792049264,156.0164457,176.51,176.43,2.8351]
[1736792049466,156.0164457,176.51,176.4,22.24659908]
[1736792049765,156.0164457,176.51,176.38,6.26]
[1736792049766,156.0164457,176.51,176.48,2.8343]
[1736792049968,1.7059,176.57,176.46,6.28]
[1736792050362,159.4637457,176.6,176.51,2.8339]
[1736792050867,159.4637457,176.6,176.49,2.8342]
[1736792051070,3.4473,176.6,176.46,28.52659908]
[1736792051969,22.24659908,176.58,176.47,6.26]
[1736792052367,2.8338,176.53,176.48,2.8344]
[1736792052563,22.24659908,176.58,176.46,6.26]
[1736792054069,2.8338,176.53,176.47,2.8344]
[1736792054370,22.24659908,176.58,176.47,2.8344]
[1736792055069,2.8339,176.52,176.47,2.8344]
[1736792055565,22.24659908,176.55,176.44,7.7296]
[1736792055770,22.24659908,176.55,176.44,4.8946]
[1736792056074,2.8333,176.55,176.44,4.8946]
[1736792056670,3.4473,176.6,176.5,2.8339]
[1736792056871,2.8332,176.56,176.49,6.26]
[1736792057272,2.8332,176.56,176.51,2.8339]
[1736792057677,2.8335,176.54,176.49,6.26]
[1736792057974,2.8335,176.54,176.46,22.24659908]
[1736792057975,22.24659908,176.58,176.47,2.8344]
[1736792058577,22.24659908,176.58,176.5,2.834]
[1736792058871,22.24659908,176.58,176.45,6.24]
[1736792059076,2.833,176.57,176.46,22.24659908]
[1736792059672,22.24659908,176.61,176.46,22.24659908]
[1736792059873,22.24659908,176.61,176.51,2.8338]
[1736792059874,2.8333,176.56,176.51,2.8338]
[1736792060377,22.24659908,176.61,176.44,4.8946]
[1736792060573,22.24659908,176.58,176.45,6.24]
[1736792060773,2.8334,176.55,176.47,2.8345]
[1736792061078,22.24659908,176.58,176.45,6.24]
[1736792061375,2.8337,176.53,176.48,2.8343]
[1736792061777,22.24659908,176.58,176.48,2.8343]
[1736792061969,2.8338,176.53,176.48,2.8343]
[1736792062174,1.7059,176.62,176.5,2.8341]
[1736792062374,22.24659908,176.6,176.5,2.8341]
[1736792062772,22.24659908,176.6,176.45,6.24]
[1736792062978,2.8333,176.55,176.51,2.8338]
[1736792063974,22.24659908,176.6,176.46,22.24659908]
[1736792064281,2.833,176.57,176.53,2.8336]
[1736792064780,2.8331,176.56,176.52,2.8337]
[1736792064980,22.24659908,176.6,176.45,6.24]
[1736792065180,22.24659908,176.57,176.45,6.24]
[1736792065878,2.8336,176.53,176.49,2.8341]
[1736792067080,2.8336,176.53,176.5,2.8341]
[1736792068283,2.8336,176.53,176.49,2.8342]
[1736792069381,2.8336,176.53,176.5,2.8341]
[1736792070076,2.8335,176.54,176.5,2.8341]
[1736792070579,22.24659908,176.57,176.45,6.24]
[1736792071482,1.7059,176.62,176.44,11.0946]
[1736792071483,2.8341,176.51,176.44,11.0946]
[1736792071882,13.87848209,176.53,176.44,4.8946]
[1736792072076,13.87848209,176.5,176.4,191.0]
[1736792072385,13.87848209,176.5,176.37,13.87848209]
[1736792072580,13.87848209,176.47,176.38,6.2]
[1736792072785,13.87848209,176.47,176.36,5.1245]
[1736792072986,13.87848209,176.44,176.36,11.3245]
[1736792073287,13.87848209,176.44,176.32,97.34]
[1736792073477,13.87848209,176.41,176.33,6.2]
[1736792073884,13.87848209,176.38,176.33,6.2]
[1736792074081,13.87848209,176.41,176.33,6.2]
[1736792074382,2.8359,176.39,176.34,2.8365]
[1736792075077,2.8359,176.39,176.35,2.8365]
[1736792075779,2.836,176.38,176.34,2.8366]
[1736792076679,2.836,176.38,176.33,6.2]
[1736792076879,2.836,176.38,176.33,9.0368]
[1736792077482,2.836,176.38,176.34,2.8366]
[1736792077975,2.8362,176.37,176.33,9.0368]
[1736792078283,22.24175703,176.41,176.33,6.2]
[1736792078482,22.24175703,176.41,176.32,2.8369]
[1736792079683,2.8365,176.36,176.32,2.8369]
[1736792080482,2.8367,176.34,176.3,2.8372]
[1736792080880,3.4507,176.4,176.28,6.2]
[1736792081784,2.8366,176.35,176.3,2.8373]
[1736792082985,2.8366,176.35,176.31,2.8371]
[1736792084583,3.4507,176.4,176.31,2.8371]
[1736792084777,2.8364,176.36,176.31,2.8371]
[1736792085379,2.8364,176.36,176.32,2.8369]
[1736792085580,1.709,176.43,176.29,22.24175703]
[1736792085786,3.3114,176.49,176.32,22.24175703]
[1736792085987,27.25945703,176.49,176.33,3.3057]
[1736792086386,27.25945703,176.49,176.38,2.8359]
[1736792087188,2.8354,176.42,176.38,2.8359]
[1736792088686,22.24175703,176.43,176.35,2.8364]
[1736792090187,2.8361,176.38,176.35,2.8364]
[1736792091795,22.24175703,176.43,176.27,192.6352]
[1736792091984,22.24175703,176.4,176.28,6.18]
[1736792092493,2.8366,176.35,176.31,2.837]
[1736792093194,22.24175703,176.4,176.27,1.6352]
[1736792093394,22.24175703,176.37,176.27,1.6352]
[1736792093895,2.8368,176.34,176.27,1.6352]
[1736792094098,4.8773,176.39,176.27,1.6352]
[1736792094297,1.6726,176.39,176.34,2.8366]
[1736792094596,22.24175703,176.43,176.34,2.8366]
[1736792095590,2.8361,176.38,176.34,2.8366]
[1736792096192,22.24175703,176.43,176.34,2.8366]
[1736792096388,2.8362,176.37,176.34,2.8366]
[1736792099197,22.24175703,176.43,176.3,6.18]
[1736792099396,13.90174338,176.39,176.3,6.18]
[1736792100698,13.90174338,176.36,176.25,6.18]
[1736792100913,2.8375,176.3,176.26,2.8379]
[1736792101310,2.8371,176.32,176.28,2.8375]
[1736792101512,5.6706,176.43,176.23,9.3721]
[1736792101710,13.90174338,176.4,176.27,13.90174338]
[1736792102012,2.8365,176.36,176.32,2.8368]
[1736792102415,13.90174338,176.4,176.32,2.8368]
[1736792102614,2.8372,176.31,176.25,6.18]
[1736792102814,13.90174338,176.34,176.24,20.08174338]
[1736792103204,2.8372,176.31,176.27,2.8377]
[1736792103716,2.838,176.26,176.22,1.7051]
[1736792103906,13.90174338,176.28,176.18,1.6843]
[1736792104108,13.90174338,176.28,176.17,94.76843671]
[1736792104310,2.8385,176.23,176.19,2.839]
[1736792104606,13.90174338,176.28,176.18,0.21638]
[1736792104805,2.8383,176.24,176.2,2.8388]
[1736792105617,1.6896,176.33,176.18,0.21638]
[1736792105618,22.26952231,176.27,176.18,0.21638]
[1736792106214,2.8389,176.21,176.18,0.21638]
[1736792106613,22.26952231,176.27,176.18,0.21638]
[1736792106817,22.26952231,176.24,176.18,0.21638]
[1736792107216,2.8387,176.22,176.18,3.05558]
[1736792107905,22.26952231,176.27,176.18,0.21638]
[1736792108614,2.8382,176.25,176.2,2.8388]
[1736792108813,22.26952231,176.27,176.18,0.21638]
[1736792109212,2.8384,176.24,176.2,2.8389]
[1736792109416,22.26952231,176.27,176.18,0.21638]
[1736792109616,1.6823,176.28,176.18,0.21638]
[1736792109617,2.839,176.2,176.18,0.21638]
[1736792109818,22.26952231,176.24,176.18,0.21638]
[1736792112319,2.8391,176.19,176.18,0.21638]
[1736792113614,1.6998,176.23,176.18,0.21638]
[1736792113818,22.26952231,176.24,176.18,0.21638]
[1736792114217,2.8391,176.19,176.18,0.21638]
[1736792115422,2.84,176.14,176.1,4.4145]
[1736792118022,2.8401,176.13,176.1,4.4145]
[1736792118216,22.26952231,176.18,176.1,1.5741]
[1736792118422,22.26952231,176.18,176.08,1.669]
[1736792118622,22.26952231,176.15,176.07,63.59906629]
[1736792118926,22.26952231,176.15,176.08,4.54]
[1736792119227,2.8407,176.09,176.08,4.54]
[1736792121324,25.11022231,176.09,176.08,4.54]
[1736792121922,2.8415,176.04,176.01,101.9409]
[1736792122226,22.26952231,176.09,176.01,1.699]
[1736792122421,2.8411,176.07,176.03,2.8416]
[1736792122623,22.26952231,176.09,175.98,1.5704]
[1736792122832,22.26952231,176.12,175.98,3.2363]
[1736792123324,2.841,176.08,176.04,2.8413]
[1736792123526,22.26952231,176.12,176.04,2.8413]
[1736792124118,22.26952231,176.15,176.04,6.18]
[1736792124321,23.84212231,176.18,176.04,6.18]
[1736792124523,23.84212231,176.18,176.05,1.7349]
[1736792124728,2.8399,176.14,176.1,2.8404]
[1736792124924,1.6459,176.23,176.06,3.2951]
[1736792125124,3.2711,176.23,176.06,3.2951]
[1736792126525,22.26952231,176.15,176.06,1.6292]
[1736792126728,22.26952231,176.15,176.03,6.2]
[1736792126924,22.26952231,176.12,176.04,2.8414]
[1736792127129,22.26952231,176.12,176.03,6.2]
[1736792127330,2.8409,176.08,176.04,2.8415]
[1736792127524,22.26952231,176.12,176.03,6.2]
[1736792127728,22.26952231,176.12,176.0,6.2]
[1736792129832,25.53052231,176.15,176.01,22.26952231]
[1736792130423,2.8403,176.12,176.01,22.26952231]
[1736792130924,22.26952231,176.15,176.01,22.26952231]
[1736792131124,22.26952231,176.22,176.07,22.26952231]
[1736792131337,22.26952231,176.22,176.08,11.1259]
[1736792131520,2.839,176.2,176.08,11.1259]
[1736792131721,22.26952231,176.25,176.1,22.26952231]
[1736792132530,2.8384,176.24,176.1,22.26952231]
[1736792132722,5.0103,176.27,176.1,22.26952231]
[1736792132723,27.27982231,176.27,176.1,22.26952231]
[1736792132922,22.26952231,176.24,176.1,22.26952231]
[1736792133129,22.26952231,176.24,176.15,2.8396]
[1736792133330,27.27982231,176.27,176.16,6.26]
[1736792133525,22.26952231,176.31,176.16,6.26]
[1736792133732,22.26952231,176.31,176.17,4.7862]
[1736792135333,2.8386,176.23,176.17,4.7862]
[1736792135629,22.26952231,176.25,176.17,1.5728]
[1736792135834,22.26952231,176.22,176.11,9.616]
[1736792136033,22.26952231,176.22,176.11,11.3281]
[1736792136535,2.8389,176.21,176.15,2.8396]
[1736792137531,2.8386,176.22,176.15,2.8396]
[1736792137731,22.26952231,176.25,176.11,11.3281]
[1736792138437,2.8389,176.21,176.16,2.8394]
[1736792139933,22.26952231,176.28,176.11,11.3281]
[1736792140140,22.26952231,176.31,176.16,22.26952231]
[1736792140834,2.8377,176.28,176.16,22.26952231]
[1736792141140,22.26952231,176.31,176.16,22.26952231]
[1736792141337,2.8383,176.24,176.13,22.26952231]
[1736792141933,22.26952231,176.25,176.11,11.3281]
[1736792142133,22.26952231,176.25,176.11,5.0481]
[1736792142335,2.8394,176.17,176.12,2.8401]
[1736792142534,22.26952231,176.22,176.11,5.0481]
[1736792142739,22.26952231,176.22,176.11,1.7121]
[1736792142936,2.8398,176.15,176.11,4.5524]
[1736792143442,2.8392,176.19,176.14,2.8398]
[1736792144739,22.26952231,176.2,176.08,6.26]
[1736792145246,22.26952231,176.22,176.08,6.26]
[1736792145439,22.26952231,176.22,176.09,22.26952231]
[1736792145638,22.26952231,176.22,176.08,6.26]
[1736792146641,3.202,176.21,176.08,6.26]
[1736792146844,2.8399,176.15,176.1,2.8405]
[1736792147039,22.26952231,176.19,176.08,6.26]
[1736792147543,22.26952231,176.19,176.11,2.8403]
[1736792148041,2.8395,176.17,176.11,2.8403]
[1736792148243,22.26952231,176.19,176.11,2.8403]
[1736792148642,2.8397,176.16,176.11,2.8403]
[1736792148846,22.26952231,176.19,176.08,6.26]
[1736792149143,2.8394,176.18,176.08,6.26]
[1736792149344,1.5716,176.24,176.08,6.26]
[1736792149847,2.8388,176.21,176.08,6.26]
[1736792150748,1.5716,176.24,176.07,1.5758]
[1736792150949,22.26952231,176.22,176.13,2.84]
[1736792151338,22.26952231,176.22,176.09,6.26]
[1736792151545,22.26952231,176.22,176.11,2.8402]
[1736792151849,22.26952231,176.22,176.09,6.26]
[1736792152442,2.8385,176.23,176.19,2.8391]
[1736792152847,22.26952231,176.28,176.15,6.26]
[1736792153043,2.8379,176.27,176.17,22.26952231]
[1736792153249,153.68381465,176.35,176.2,22.26952231]
[1736792153445,23.90032231,176.36,176.23,22.26952231]
[1736792153643,2.8368,176.34,176.29,2.8374]
[1736792153843,1.5734,176.38,176.26,22.26952231]
[1736792154047,2.836,176.38,176.33,2.8368]
[1736792154454,153.68381465,176.39,176.26,22.26952231]
[1736792154755,1.6308,176.41,176.26,22.26952231]
[1736792155054,2.8363,176.37,176.26,22.26952231]
[1736792155747,2.8364,176.36,176.3,2.8372]
[1736792156148,2.8364,176.36,176.26,22.26952231]
[1736792156350,2.8362,176.37,176.32,2.837]
[1736792156655,2.8362,176.37,176.26,22.26952231]
[1736792158253,2.8362,176.37,176.31,2.837]
[1736792159848,2.8362,176.37,176.32,2.837]
[1736792160347,27.13725941,176.45,176.38,2.836]
[1736792160545,22.26952231,176.45,176.38,2.836]
[1736792160953,22.26952231,176.42,176.33,1.6046]
[1736792161153,22.26952231,176.42,176.3,6.28]
[1736792161348,2.8361,176.38,176.3,6.28]
[1736792161553,2.8361,176.38,176.32,2.8368]
[1736792161756,22.26952231,176.42,176.3,6.28]
[1736792162059,22.26952231,176.36,176.26,3.2465]
[1736792162246,22.26952231,176.36,176.26,1.6046]
[1736792162555,22.26952231,176.33,176.23,6.3]
[1736792162849,22.26952231,176.33,176.23,2.8383]
[1736792163057,1.6422,176.32,176.21,3.1735]
[1736792163256,22.26952231,176.33,176.21,3.1735]
[1736792163555,2.8372,176.31,176.21,3.1735]
[1736792163855,22.26952231,176.33,176.21,3.1735]
[1736792164055,22.26952231,176.3,176.21,1.6028]
[1736792164253,2.8379,176.27,176.21,1.6028]
[1736792164454,22.26952231,176.3,176.19,103.74]
[1736792164656,2.8381,176.26,176.19,103.74]
[1736792164856,3.3199,176.29,176.19,103.74]
[1736792165150,3.3199,176.29,176.2,2.8389]
[1736792165353,2.8383,176.24,176.19,97.44]
[1736792166048,2.8383,176.24,176.19,100.2791]
[1736792166854,2.8383,176.24,176.19,2.8391]
[1736792167160,2.8382,176.25,176.16,1.5707]
[1736792167359,3.3199,176.29,176.16,1.5707]
[1736792167559,3.3199,176.29,176.24,2.8383]
[1736792167761,2.8377,176.28,176.24,2.8383]
[1736792168152,2.8377,176.28,176.23,2.8384]
[1736792168351,2.8377,176.28,176.16,1.5707]
[1736792168553,2.8373,176.31,176.16,1.5707]
[1736792168756,2.8373,176.31,176.19,22.26952231]
[1736792169059,25.10652231,176.33,176.19,22.26952231]
[1736792169260,2.837,176.33,176.19,22.26952231]
[1736792169754,2.8371,176.32,176.19,22.26952231]
[1736792169960,22.26952231,176.33,176.19,22.26952231]
[1736792170156,22.26952231,176.3,176.16,23.84022231]
[1736792170355,2.838,176.26,176.21,2.8386]
[1736792171057,2.838,176.26,176.22,2.8386]
[1736792171257,22.26952231,176.3,176.16,23.84022231]
[1736792172061,22.26952231,176.27,176.16,1.5707]
[1736792172261,2.8389,176.21,176.14,9.5243]
[1736792172657,2.8389,176.21,176.16,2.8394]
[1736792173161,1.7046,176.26,176.14,9.5243]
[1736792173755,4.5427,176.26,176.21,2.8386]
[1736792174258,1.7046,176.26,176.21,2.8386]
[1736792174459,2.8381,176.25,176.21,2.8386]
[1736792174955,2.8381,176.25,176.2,2.8389]
[1736792175759,1.7046,176.26,176.17,2.8393]
[1736792175957,1.7046,176.26,176.15,6.26]
[1736792176654,1.7046,176.26,176.17,2.8394]
[1736792176861,1.7046,176.26,176.15,6.26]
[1736792177063,22.26952231,176.24,176.15,6.26]
[1736792177264,2.8394,176.18,176.15,6.26]
[1736792177460,22.26952231,176.24,176.11,1.738]
[1736792177767,22.26952231,176.18,176.09,103.64]
[1736792177968,22.26952231,176.18,176.06,14.0718982]
[1736792178164,2.8402,176.13,176.08,4.5561]
[1736792178666,22.26952231,176.18,176.05,1.6795]
[1736792178860,22.26952231,176.15,176.05,2.8413]
[1736792179056,22.26952231,176.15,176.01,9.6549]
[1736792179365,2.841,176.08,176.03,2.8415]
[1736792180168,22.26952231,176.12,176.01,9.6549]
[1736792181260,2.8407,176.1,176.04,2.8415]
[1736792181565,2.8407,176.1,176.01,9.6549]
[1736792181959,1.5816,176.17,176.04,22.26952231]
[1736792182161,3.3594,176.21,176.07,22.26952231]
[1736792182359,2.8391,176.19,176.08,7.9803]
[1736792182563,3.3594,176.21,176.08,7.9803]
[1736792182763,3.3594,176.21,176.09,3.1962]
[1736792182968,2.8394,176.18,176.14,2.8399]
[1736792183172,2.8394,176.18,176.09,3.1962]
[1736792183469,3.3594,176.21,176.09,3.1962]
[1736792183867,3.3594,176.21,176.1,2.8404]
[1736792184470,2.8398,176.15,176.1,2.8404]
[1736792184964,2.8398,176.15,176.11,2.8403]
[1736792185168,3.3594,176.21,176.04,22.26952231]
[1736792185367,3.3594,176.21,176.05,6.26]
[1736792185568,3.3594,176.21,176.07,2.8409]
[1736792185770,22.26952231,176.15,176.07,2.8409]
[1736792186068,22.26952231,176.15,176.05,6.26]
[1736792186069,22.26952231,176.15,176.04,2.8415]
[1736792186274,22.26952231,176.12,176.02,6.26]
[1736792186470,1.6799,176.14,176.02,6.26]
[1736792186662,1.6799,176.14,176.07,2.8409]
[1736792186866,1.6799,176.14,176.02,6.26]
[1736792187072,2.8401,176.13,176.02,6.26]
[1736792187573,22.26952231,176.18,176.02,6.26]
[1736792187773,2.8399,176.14,176.09,2.8407]
[1736792187965,2.8399,176.14,176.04,22.26952231]
[1736792188373,2.8397,176.16,176.04,22.26952231]
[1736792189172,2.8397,176.16,176.11,2.8403]
[1736792189371,6.26,176.25,176.1,28.52952231]
[1736792189372,22.26952231,176.25,176.1,28.52952231]
[1736792189670,22.26952231,176.25,176.17,2.8394]
[1736792189876,3.3113,176.27,176.13,22.26952231]
[1736792190172,1.6079,176.27,176.13,22.26952231]
[1736792191472,1.6079,176.27,176.14,36.18995679]
[1736792191773,2.8381,176.25,176.2,2.8388]
[1736792191974,37.78185679,176.29,176.17,6.26]
[1736792192571,36.18995679,176.29,176.17,6.26]
[1736792192977,1.6397,176.33,176.17,42.44995679]
[1736792193174,1.6397,176.33,176.2,36.18995679]
[1736792193378,1.6397,176.33,176.21,4.8778]
[1736792193578,2.8371,176.32,176.24,2.8382]
[1736792193770,2.8371,176.32,176.25,6.26]
[1736792194575,2.8372,176.31,176.27,2.8377]
[1736792194774,2.8372,176.31,176.25,6.26]
[1736792195871,36.18995679,176.32,176.21,4.8778]
[1736792196175,36.18995679,176.32,176.22,6.24]
[1736792196876,36.18995679,176.32,176.23,2.8384]
[1736792197377,36.18995679,176.29,176.19,9.079]
[1736792197584,36.18995679,176.29,176.19,6.24]
[1736792198278,36.18995679,176.32,176.19,6.24]
[1736792198978,36.18995679,176.32,176.24,2.8382]
[1736792199378,2.8378,176.27,176.23,2.8384]
[1736792199578,36.18995679,176.32,176.19,6.24]
[1736792199882,2.8378,176.28,176.24,2.8383]
[1736792200082,36.18995679,176.32,176.19,6.24]
[1736792200485,2.838,176.26,176.22,2.8386]
[1736792200779,36.18995679,176.32,176.19,6.24]
[1736792201280,2.8382,176.25,176.2,2.8388]
[1736792201677,2.8385,176.23,176.19,2.8391]
[1736792201880,36.18995679,176.26,176.17,6.24]
[1736792202275,36.18995679,176.26,176.18,2.8392]
[1736792202679,2.8386,176.23,176.18,2.8392]
[1736792203279,36.18995679,176.26,176.18,2.8392]
[1736792203483,36.18995679,176.23,176.15,1.7336]
[1736792203782,36.18995679,176.23,176.14,97.44]
[1736792204283,36.18995679,176.2,176.14,97.44]
[1736792204483,36.18995679,176.2,176.11,6.24]
[1736792204685,2.8399,176.15,176.11,9.0802]
[1736792204986,36.18995679,176.2,176.11,4.54]
[1736792205283,2.8398,176.15,176.11,7.3803]
[1736792205485,36.18995679,176.2,176.11,4.54]
[1736792206388,2.8402,176.13,176.11,4.54]
[1736792206584,36.18995679,176.2,176.11,4.54]
[1736792207184,36.18995679,176.23,176.11,4.54]
[1736792207387,2.8389,176.2,176.17,2.8394]
[1736792207588,36.18995679,176.26,176.11,4.54]
[1736792208384,2.8391,176.19,176.15,2.8397]
[1736792208578,36.18995679,176.26,176.11,4.54]
[1736792208981,36.18995679,176.23,176.11,4.54]
[1736792209188,36.18995679,176.23,176.11,10.76]
[1736792209988,2.8396,176.16,176.13,2.84]
[1736792210385,36.18995679,176.23,176.11,10.76]
[1736792210787,36.18995679,176.23,176.12,2.8402]
[1736792211389,22.28910147,176.22,176.11,13.6003]
[1736792211885,2.84,176.14,176.11,4.54]
[1736792212085,22.28910147,176.19,176.11,4.54]
[1736792212783,2.8401,176.13,176.11,4.54]
[1736792213987,2.8402,176.12,176.11,4.54]
[1736792218194,2.8411,176.07,176.0,4.9242]
[1736792218694,22.28910147,176.13,176.02,2.8418]
[1736792218892,2.8412,176.06,176.0,4.9242]
[1736792219093,22.28910147,176.13,176.03,2.8416]
[1736792219396,2.8408,176.09,176.0,4.9242]
[1736792219585,3.2366,176.14,176.0,4.9242]
[1736792219791,1.71,176.15,176.07,2.8409]
[1736792219993,2.8405,176.11,176.07,2.8409]
[1736792220193,1.71,176.15,176.05,2.8412]
[1736792220388,22.28910147,176.13,176.0,4.9242]
[1736792221195,1.71,176.15,175.96,6.24]
[1736792221196,22.28910147,176.1,175.96,6.24]
[1736792221496,22.28910147,176.1,175.99,2.8422]
[1736792221797,22.28910147,176.1,175.96,9.4894]
[1736792222292,22.28910147,176.06,175.95,31.24759282]
[1736792222498,22.28910147,176.06,175.94,100.2831]
[1736792222796,1.6956,176.05,175.94,101.98]
[1736792223097,1.6956,176.05,175.95,2.8429]
[1736792223299,2.8423,176.0,175.95,2.8429]
[1736792223498,1.6956,176.05,175.94,101.98]
[1736792223797,2.8417,176.03,175.94,101.98]
[1736792224699,2.8417,176.03,175.98,2.8423]
[1736792225192,2.8417,176.03,175.94,101.98]
[1736792225193,2.8423,176.0,175.94,101.98]
[1736792225499,22.28910147,176.03,175.94,101.98]
[1736792225894,6.26,176.07,175.94,101.98]
[1736792225895,22.28910147,176.06,175.94,101.98]
[1736792226092,1.6655,176.08,175.94,101.98]
[1736792226292,2.8418,176.03,175.98,2.8424]
[1736792226493,1.6655,176.08,175.98,2.8424]
[1736792226997,2.8418,176.03,175.98,2.8424]
[1736792227298,22.28910147,176.03,175.94,101.98]
[1736792227498,22.28910147,176.0,175.94,4.54]
[1736792228298,2.843,175.95,175.94,4.54]
[1736792228795,2.8439,175.9,175.86,9.4893982]
[1736792228995,22.28910147,175.94,175.86,1.6775]
[1736792229601,22.28910147,175.94,175.86,4.5219]
[1736792229797,22.28910147,175.97,175.86,1.6775]
[1736792230903,22.28910147,175.97,175.87,2.8441]
[1736792231500,22.28910147,175.94,175.86,2.8444]
[1736792231696,22.28910147,175.94,175.85,6.26]
[1736792231898,2.8441,175.88,175.81,3.2885]
[1736792232102,2.8441,175.88,175.83,2.8447]
[1736792232300,22.28910147,175.94,175.83,2.8447]
[1736792232502,22.28910147,175.94,175.81,1.602]
[1736792232798,22.28910147,175.97,175.82,22.28910147]
[1736792233196,22.28910147,176.0,175.91,2.8435]
[1736792233394,22.28910147,176.0,175.88,6.32]
[1736792233599,22.28910147,175.97,175.89,2.8439]
[1736792233799,22.28910147,175.97,175.88,6.32]
[1736792234197,22.28910147,175.97,175.88,9.1639]
[1736792234497,22.28910147,175.97,175.88,6.32]
[1736792234700,22.28910147,175.97,175.88,9.1641]
[1736792234900,22.28910147,175.97,175.88,6.32]
[1736792236001,22.28910147,175.94,175.83,6.32]
[1736792236397,2.844,175.89,175.83,6.32]
[1736792236597,2.844,175.89,175.84,2.8446]
[1736792236797,2.844,175.89,175.83,6.32]
[1736792237205,2.8438,175.91,175.88,2.8441]
[1736792237501,22.28910147,175.94,175.88,2.8441]
[1736792237702,22.28910147,175.94,175.83,6.32]
[1736792237905,2.8438,175.9,175.86,2.8444]
[1736792241005,22.28910147,175.94,175.87,2.8441]
[1736792241195,22.28910147,175.94,175.83,6.32]
[1736792241598,2.8443,175.87,175.83,9.1647]